Cogmind - Beta 14 @@@ ROGUE MODE // 2025.03.01 @ 10:30:26 Player: Pastel Celery Result: Destroyed by G-47 Trooper with Particle Gun Performance ------------- Evolutions (3) 1500 Regions Visited (7) 1400 Robots Destroyed (18) 90 Value Destroyed (514) 514 Prototype IDs (2) 40 Alien Tech Used (0) 0 Bonus (200) 200 TOTAL SCORE: 3744 Bonus ------- Entered Garrisons 200 Cogmind --------- Core Integrity 0/700 Matter 179/300 Energy 99/100 System Corruption 5% Temperature Cool (27) Movement Core (50) Location -7/Garrison Parts ------- > --- POWER (2) -------- (None) > --- PROPULSION (4) --- (None) > --- UTILITY (5) ------ Visual Processing Unit > --- WEAPON (2) ------- (None) > --- INVENTORY (5) ---- Heat Sink Advanced Weight Redist. System Peak State ------------ > --- POWER ------------ Micro Nuclear Core > --- PROPULSION ------- Improved Flight Unit Improved Flight Unit Improved Flight Unit Improved Flight Unit > --- UTILITY ---------- Compact Battery Advanced Weight Redist. System Advanced Weight Redist. System Visual Processing Unit Propulsion Shielding > --- WEAPON ----------- Gatling Laser > --- INVENTORY -------- Cooled Airjet Heat Sink [Rating: 32] Favorites ----------- Power Light Ion Engine Engine Light Ion Engine Power Core Micro Nuclear Core Propulsion Improved Flight Unit Leg Aluminum Leg Wheel Wheel Hover Unit Cooled Airjet Flight Unit Improved Flight Unit Utility Propulsion Shielding Device Seismic Detector Storage Compact Battery Processor Visual Processing Unit Protection Propulsion Shielding Weapon Heavy EM Pulse Gun Energy Gun Heavy EM Pulse Gun Ballistic Gun Light Assault Rifle Build | -11 -10 -10 -9 -9 -8 -7 -7 ------- Run | Yrd Mat Min Mat Sto Mat Fac Gar Slots Evolved 6 | . . . 2 . 2 2 . Power 1 | . . . 1 . . . . Propulsion 2 | . . . 1 . . 1 . Utility 3 | . . . . . 2 1 . Weapon . | . . . . . . . . Parts Attached 59 | 6 21 2 5 11 2 7 5 Power 10 | 1 4 . . 3 . 1 1 Engine 8 | 1 4 . . 3 . . . Core 2 | . . . . . . 1 1 Reactor . | . . . . . . . . Propulsion 19 | 2 4 . 3 3 . 4 3 Treads . | . . . . . . . . Leg 2 | . 2 . . . . . . Wheel 3 | 2 1 . . . . . . Hover 2 | . . . . . . 1 1 Flight 12 | . 1 . 3 3 . 3 2 Utility 14 | . 7 2 . 1 2 1 1 Device 6 | . 2 1 . . 1 1 1 Storage 2 | . 1 . . 1 . . . Processor 1 | . . . . . 1 . . Hackware . | . . . . . . . . Protection 5 | . 4 1 . . . . . Artifact . | . . . . . . . . Weapon 16 | 3 6 . 2 4 . 1 . Energy Gun 12 | 1 4 . 2 4 . 1 . Energy Cannon . | . . . . . . . . Ballistic Gun 4 | 2 2 . . . . . . Ballistic Cannon . | . . . . . . . . Launcher . | . . . . . . . . Special Weapon . | . . . . . . . . Impact Weapon . | . . . . . . . . Slashing Weapon . | . . . . . . . . Piercing Weapon . | . . . . . . . . Special Melee Weapon . | . . . . . . . . Unidentified Prototypes 2 | . . . 1 . . 1 . Parts Lost 28 | . 9 . . 10 . . 9 Power 5 | . 1 . . 3 . . 1 Propulsion 9 | . 4 . . 1 . . 4 Utility 6 | . 2 . . 1 . . 3 Weapon 8 | . 2 . . 5 . . 1 Highest Loss Streak 8 | . 5 . . 8 . . 5 To Critical Strikes . | . . . . . . . . Average Slot Usage (%) 66 | . 68 71 60 76 62 63 37 Engine 10 | . 13 14 11 9 . . . Leg 4 | . 7 14 5 . . . . Wheel 3 | . 7 . . . . . . Flight 10 | . . . 12 32 26 22 9 Device 6 | . 10 3 . . 9 7 6 Storage 3 | . 3 . . 3 9 7 4 Processor 1 | . . . . . 9 7 7 Protection 8 | . 2 24 22 17 9 7 1 Energy Gun 12 | . 15 14 9 14 . 2 2 Ballistic Gun 3 | . 6 . . . . . . Peak Build Rating 32 | 5 8 5 17 18 18 32 26 Average Rating 9 | 3 5 5 8 15 17 23 14 On Entrance 10 | . 5 4 5 17 14 16 24 Naked Turns . | . . . . . . . . Heaviest Build 16 | 5 16 9 13 13 2 12 12 Greatest Support 29 | 20 26 10 15 15 24 29 19 Greatest Overweight (x) 2 | . 2 . 2 . . . . Average Overweight (x) . | . . . . . . . . Largest Inventory Capacity 5 | 5 5 5 5 5 5 5 5 Average Capacity 5 | 5 5 5 5 5 5 5 5 Most Carried 5 | 3 5 1 5 5 4 5 5 Average Carried 3 | . 4 1 1 4 3 3 3 Final Capacity 5 | 5 5 5 5 5 5 5 5 Final Carried 5 | 2 2 1 5 5 4 5 2 Class Distribution -------------------- 100% | Mutant Dominant Class ---------------- Mutant | -10/Materials Mutant | -10/Mines Mutant | -9/Materials Mutant | -9/Storage Mutant | -8/Materials Mutant | -7/Factory Mutant | -7/Garrison Resources | -11 -10 -10 -9 -9 -8 -7 -7 ----------- Run | Yrd Mat Min Mat Sto Mat Fac Gar Matter Collected 569 | 276 203 . 60 30 . . . Remotely . | . . . . . . . . Salvage Created 748 | 35 479 . 118 116 . . . Parts 41 | 2 20 . 11 8 . . . Haulers Intercepted . | . . . . . . . . Recyclers Shooed . | . . . . . . . . Parts Field Recycled . | . . . . . . . . Retrieved Matter . | . . . . . . . . Parts Self-Destructed . | . . . . . . . . Prevented . | . . . . . . . . Kills | -11 -10 -10 -9 -9 -8 -7 -7 ------- Run | Yrd Mat Min Mat Sto Mat Fac Gar Combat Hostiles Destroyed 16 | 1 10 . 2 3 . . . Guns 15 | 1 9 . 2 3 . . . AOE 1 | . 1 . . . . . . Classes Destroyed 5 | 1 3 . 1 . . . . Worker 1 | . 1 . . . . . . Recycler 1 | . 1 . . . . . . Swarmer 4 | . 3 . . 1 . . . Grunt 9 | 1 7 . . 1 . . . Sentry 3 | . . . 2 1 . . . Best Kill Streak 4 | 1 4 . 2 1 . . . Combat Bots Only 3 | 1 3 . 2 1 . . . Max Kills in Single Turn 2 | 1 2 . 1 1 . . . Gunslinging . | . . . . . . . . Exploded 1 | . 1 . . . . . . Melee . | . . . . . . . . Uniques/NPCs Destroyed . | . . . . . . . . Combat | -11 -10 -10 -9 -9 -8 -7 -7 -------- Run | Yrd Mat Min Mat Sto Mat Fac Gar Hostile Shots Fired 426 | 9 86 . 15 113 6 . 197 Missed 173 | 2 17 . 3 59 2 . 90 Damage Taken 2907 | 78 767 . 172 700 65 . 1125 Core 1233 | 12 234 . 44 172 65 . 706 Absorbed by Shields 42 | . . . . . . . 42 Redirected to Shielding 50 | . . . 4 36 . . 10 Regen/Repaired (Parts) 33 | . . . 33 . . . . Core Remaining (%) 57 | 95 . 1 . 46 88 . . Volleys Fired 95 | 8 56 5 6 14 . . 6 Largest 2 | 2 2 1 2 2 . . 1 Hottest 90 | 40 60 40 90 90 . . 80 Shots Fired 147 | 16 87 5 12 21 . . 6 Gun 147 | 16 87 5 12 21 . . 6 Cannon . | . . . . . . . . Launcher . | . . . . . . . . Special . | . . . . . . . . Kinetic 52 | 16 36 . . . . . . Thermal 41 | . 35 . . . . . 6 Explosive . | . . . . . . . . Electromagnetic 54 | . 16 5 12 21 . . . Robot Hit Streak 8 | 3 7 8 5 5 . . 5 Robot Miss Streak 4 | 2 4 1 1 4 . . 2 Penetration Max . | . . . . . . . . Secondary Targets 3 | . 2 . . 1 . . . Max Gunslinging Chain 1 | . 1 . . 1 . . . Shots Hit Robots 92 | 9 51 4 8 14 . . 6 Core Hits 46 | 3 23 . 4 4 . . 12 Critical Kills . | . . . . . . . . Critical Parts Destroyed . | . . . . . . . . Critical Strikes 1 | . 1 . . . . . . Burn 1 | . 1 . . . . . . Melee Attacks . | . . . . . . . . Impact . | . . . . . . . . Slashing . | . . . . . . . . Piercing . | . . . . . . . . Sneak Attacks . | . . . . . . . . Combat Hostiles . | . . . . . . . . Follow-up Attacks . | . . . . . . . . Damage Inflicted 1264 | 80 655 55 106 181 . . 187 Guns 1104 | 80 550 55 106 181 . . 132 Cannons . | . . . . . . . . Explosions 105 | . 105 . . . . . . Melee . | . . . . . . . . Ramming 55 | . . . . . . . 55 Kinetic 261 | 80 181 . . . . . . Thermal 463 | . 331 . . . . . 132 Explosive . | . . . . . . . . Electromagnetic 485 | . 143 55 106 181 . . . Impact . | . . . . . . . . Slashing . | . . . . . . . . Piercing . | . . . . . . . . Highest Corruption 5 | . . . . . . . 5 Average Corruption 4 | . . . . . . . 4 Corruption Purged . | . . . . . . . . Corruption Blocked . | . . . . . . . . Effects 4 | . . . . . . . 4 Message Errors 2 | . . . . . . . 2 Matter Fused 1 | . . . . . . . 1 Energy Discharges 1 | . . . . . . . 1 Overload Shots . | . . . . . . . . Overflow Damage . | . . . . . . . . Projectiles . | . . . . . . . . Explosions . | . . . . . . . . Melee . | . . . . . . . . Knockbacks . | . . . . . . . . Impact . | . . . . . . . . Kinetic . | . . . . . . . . Secondary . | . . . . . . . . Self-Inflicted Damage 25 | . . . . . . . 25 Shots . | . . . . . . . . Rammed 11 | . . . . . . . 11 Targets Rammed 11 | . . . . . . . 11 Kicked . | . . . . . . . . Crushed . | . . . . . . . . Highest Temperature 331 | 12 331 30 272 230 . . 63 Average Temperature 96 | 7 107 16 150 84 . . 27 Received Heat Transfer 963 | 42 327 . 72 195 27 . 300 Effects 2 | . 2 . . . . . . Energy Bleed 1 | . 1 . . . . . . Interference 1 | . 1 . . . . . . Siege Activations . | . . . . . . . . Robots Corrupted . | . . . . . . . . Combat Hostiles . | . . . . . . . . Parts Fried 2 | . . . . 2 . . . Impact Corruptions . | . . . . . . . . Robots Melted . | . . . . . . . . Combat Hostiles . | . . . . . . . . Parts Melted 1 | . 1 . . . . . . Heat Transferred 1083 | . 783 . . . . . 300 Parts Sabotaged . | . . . . . . . . Parts Stolen . | . . . . . . . . Parts Stripped . | . . . . . . . . Power Chain Reactions 2 | . 2 . . . . . . Alert | -11 -10 -10 -9 -9 -8 -7 -7 ------- Run | Yrd Mat Min Mat Sto Mat Fac Gar Peak Influence 300 | 20 119 . 118 174 130 58 300 Initial 70 | . 13 . . 49 70 58 40 Average 60 | 3 48 . 41 92 97 58 108 Maximum Alert Level 1 | . . . . . . . 1 Low Security (%) 97 | 100 100 100 100 100 100 100 74 Level 1 2 | . . . . . . . 25 Level 2 . | . . . . . . . . Level 3 . | . . . . . . . . Level 4 . | . . . . . . . . Level 5 . | . . . . . . . . High Security . | . . . . . . . . Max Security . | . . . . . . . . Squads Dispatched 2 | . . . . 1 1 . . Investigation . | . . . . . . . . Extermination . | . . . . . . . . Reinforcement 2 | . . . . 1 1 . . Assault . | . . . . . . . . Garrison . | . . . . . . . . Intercept . | . . . . . . . . Searches Triggered . | . . . . . . . . Construction Impeded . | . . . . . . . . Haulers Reinforced . | . . . . . . . . Active Scanning Responses . | . . . . . . . . Cargo Convoy Interrupts . | . . . . . . . . Stealth | -11 -10 -10 -9 -9 -8 -7 -7 --------- Run | Yrd Mat Min Mat Sto Mat Fac Gar Distress Signals 4 | . 2 . . 2 . . . Communications Jammed . | . . . . . . . . Distress Signals . | . . . . . . . . Times Spotted 61 | 1 16 . 2 17 6 . 19 Peak Tracking Total 14 | 1 4 . 3 8 5 . 14 Tactical Retreats 9 | . 1 . 1 3 . . 4 Traps | -11 -10 -10 -9 -9 -8 -7 -7 ------- Run | Yrd Mat Min Mat Sto Mat Fac Gar Traps Triggered 5 | . . . . 2 . . 3 Indirectly . | . . . . . . . . Trap Hack Attempts . | . . . . . . . . Triggered . | . . . . . . . . Disarmed . | . . . . . . . . Reprogrammed . | . . . . . . . . Reused . | . . . . . . . . Traps Extracted . | . . . . . . . . Installed . | . . . . . . . . Triggered . | . . . . . . . . Machines | -11 -10 -10 -9 -9 -8 -7 -7 ---------- Run | Yrd Mat Min Mat Sto Mat Fac Gar Machines Disabled . | . . . . . . . . Max in Single Turn . | . . . . . . . . Machines Repaired . | . . . . . . . . Machines Dismantled . | . . . . . . . . Machines Sabotaged . | . . . . . . . . Overloaded Fab Kills . | . . . . . . . . Hacking | -11 -10 -10 -9 -9 -8 -7 -7 --------- Run | Yrd Mat Min Mat Sto Mat Fac Gar Machines Accessed 4 | . . . 2 . . 1 1 Terminals 2 | . . . 1 . . . 1 Fabricators . | . . . . . . . . Repair Stations 1 | . . . 1 . . . . Recycling Units . | . . . . . . . . Scanalyzers . | . . . . . . . . Garrison Access 1 | . . . . . . 1 . Total Hacks 6 | . . . 3 . . 1 2 Successful 4 | . . . 3 . . 1 . Failed 2 | . . . . . . . 2 Catastrophic 1 | . . . . . . . 1 Database Lockouts . | . . . . . . . . Manual . | . . . . . . . . Terminals 3 | . . . 1 . . . 2 Fabricators . | . . . . . . . . Repair Stations 2 | . . . 2 . . . . Recycling Units . | . . . . . . . . Scanalyzers . | . . . . . . . . Garrison Access 1 | . . . . . . 1 . Terminal Hacks 1 | . . . 1 . . . . Recall Reinforcements 1 | . . . 1 . . . . Fabricator Hacks . | . . . . . . . . Repair Station Hacks 2 | . . . 2 . . . . Scan Component 1 | . . . 1 . . . . Repair 1 | . . . 1 . . . . Recycling Unit Hacks . | . . . . . . . . Scanalyzer . | . . . . . . . . Garrison Access Hacks 1 | . . . . . . 1 . Unlock Access 1 | . . . . . . 1 . Unauthorized Hacks . | . . . . . . . . Terminals . | . . . . . . . . Fabricators . | . . . . . . . . Repair Stations . | . . . . . . . . Recycling Units . | . . . . . . . . Scanalyzers . | . . . . . . . . Garrison Access . | . . . . . . . . Data Cores Recovered . | . . . . . . . . Used . | . . . . . . . . Hacking Detections 1 | . . . . . . . 1 Full Trace Events 1 | . . . . . . . 1 Feedback Events . | . . . . . . . . Feedback Blocked . | . . . . . . . . Robot Schematics Acquired . | . . . . . . . . Robots Built . | . . . . . . . . Authchips . | . . . . . . . . Time . | . . . . . . . . Total Robot Build Rating . | . . . . . . . . Part Schematics Acquired . | . . . . . . . . Parts Built . | . . . . . . . . Authchips . | . . . . . . . . Time . | . . . . . . . . Total Part Build Rating . | . . . . . . . . Parts Repaired 1 | . . . 1 . . . . Time 26 | . . . 26 . . . . Parts Recycled . | . . . . . . . . Recycled Matter . | . . . . . . . . Retrieved Matter . | . . . . . . . . Retrieved Components . | . . . . . . . . Parts Scanalyzed . | . . . . . . . . Part Schematics Acquired . | . . . . . . . . Parts Damaged . | . . . . . . . . Bothacking | -11 -10 -10 -9 -9 -8 -7 -7 ------------ Run | Yrd Mat Min Mat Sto Mat Fac Gar Used RIF Installer . | . . . . . . . . Robots Hacked . | . . . . . . . . Non-combat . | . . . . . . . . Combat . | . . . . . . . . Robot Hacks Applied . | . . . . . . . . Relay Couplers Released . | . . . . . . . . Fabnet Peak Effective % . | . . . . . . . . Robots Rewired . | . . . . . . . . Allies Hacked . | . . . . . . . . Hacks Repelled . | . . . . . . . . Allies | -11 -10 -10 -9 -9 -8 -7 -7 -------- Run | Yrd Mat Min Mat Sto Mat Fac Gar Total Allies . | . . . . . . . . Largest Group . | . . . . . . . . Highest-Rated Group . | . . . . . . . . Highest-Rated Ally . | . . . . . . . . Total Orders . | . . . . . . . . Ally Attacks . | . . . . . . . . Total Damage . | . . . . . . . . Kills . | . . . . . . . . Allies Corrupted . | . . . . . . . . Allies Melted . | . . . . . . . . Intel | -11 -10 -10 -9 -9 -8 -7 -7 ------- Run | Yrd Mat Min Mat Sto Mat Fac Gar Robot Analysis Total . | . . . . . . . . Derelict Logs Recovered . | . . . . . . . . Drone Launches . | . . . . . . . . Drone Recoveries . | . . . . . . . . Exploration | -11 -10 -10 -9 -9 -8 -7 -7 ------------- Run | Yrd Mat Min Mat Sto Mat Fac Gar Turns Passed 1796 | 79 857 81 122 376 86 33 162 Spaces Moved 1613 | 63 488 58 115 419 158 57 255 Core 105 | 17 41 . 3 . . . 44 Treads . | . . . . . . . . Legs 329 | . 217 58 54 . . . . Wheels 246 | 46 200 . . . . . . Hover 9 | . . . . . . . 9 Flight 924 | . 30 . 58 419 158 57 202 Fastest Speed 31 | 50 40 120 34 34 34 31 37 Average Speed 65 | 71 108 120 77 34 34 34 40 Slowest Speed 190 | 80 190 120 150 40 37 37 50 Overloaded Moves . | . . . . . . . . Propulsion Burnouts . | . . . . . . . . Robots Hopped 3 | . . . . 3 . . . Cave-ins Triggered . | . . . . . . . . Exploration Rate (%) 23 | 6 52 17 11 46 21 2 33 Regions Visited 7 Branch Regions 2 Pre-discovered Areas . | . . . . . . . . Known Exits Taken 1 | . . . . . . 1 . Unknown Exits Taken 6 | 1 1 1 1 1 1 . . Scrap Searched . | . . . . . . . . Spaces Dug . | . . . . . . . . Terrain Destroyed 11 | . 11 . . . . . . Melee . | . . . . . . . . Projectile . | . . . . . . . . AOE 11 | . 11 . . . . . . Terrain Rammed . | . . . . . . . . Walls Destroyed . | . . . . . . . . Machines Disabled . | . . . . . . . . Actions | -11 -10 -10 -9 -9 -8 -7 -7 --------- Run | Yrd Mat Min Mat Sto Mat Fac Gar Total 2216 | 84 744 65 135 623 189 71 305 Wait 340 | . 149 . . 161 29 1 . Move 1600 | 62 487 57 114 412 157 57 254 Hop 3 | . . . . 3 . . . Pick Up 35 | 7 14 . 9 2 . 3 . Fast Attach 12 | . 2 . . 9 . . 1 Attach 42 | 6 17 2 5 1 2 5 4 Detach 15 | 1 8 1 . . 1 3 1 Swap 5 | . 2 . . 1 . 2 . Drop 12 | . 9 . 1 2 . . . Fire 95 | 8 56 5 6 14 . . 6 Melee . | . . . . . . . . Ram 11 | . . . . . . . 11 Kick . | . . . . . . . . Crush . | . . . . . . . . Escape Stasis 46 | . . . . 18 . . 28 Rewire . | . . . . . . . . Trap . | . . . . . . . . Miscellaneous . | . . . . . . . . Route ------- -11/Scrapyard -10/Materials (discovered 2 exits: *Mat / [*Min]) -10/Mines -9/Materials (discovered 2 exits: [*Min] / [*Sto]) -9/Storage -8/Materials -7/Factory (discovered 2 exits: [*Low] / Gar) -7/Garrison (discovered 1 exit: [*Fac]) History --------- Turn | Location | Event 2 | -11/Scrapyard | Met Revision 17 44 | -11/Scrapyard | Discovered new exit (range 8) 80 | -11/Scrapyard | Entered Materials 317 | -10/Materials | Build established: Mutant 398 | -10/Materials | Lost 5 parts (1p2n1u1w) 772 | -10/Materials | Core integrity fell below 50% 811 | -10/Materials | Core integrity fell below 20% 866 | -10/Materials | Discovered new exit (range 6) 882 | -10/Materials | Discovered new exit (range 14) 937 | -10/Materials | Entered Mines 1005 | -10/Mines | Discovered new exit (range 11) 1018 | -10/Mines | Entered Materials 1018 | -9/Materials | Evolved 2 slots: Power x1, Propulsion x1 1053 | -9/Materials | Repaired EM Pulse Gun? 1058 | -9/Materials | Discovered new exit (range 16) 1076 | -9/Materials | Discovered new exit (range 15) 1140 | -9/Materials | Entered Storage 1443 | -9/Storage | Lost 8 parts (2p1u5w) 1495 | -9/Storage | Core integrity fell below 50% 1513 | -9/Storage | Discovered new exit (range 9) 1516 | -9/Storage | Entered Materials 1516 | -8/Materials | Evolved 2 slots: Utility x2 1598 | -8/Materials | Discovered new exit (range 4) 1602 | -8/Materials | Entered Factory 1602 | -7/Factory | Evolved 2 slots: Propulsion x1, Utility x1 1604 | -7/Factory | Discovered new exit (range 5) 1635 | -7/Factory | Identified exit to Garrison 1635 | -7/Factory | Entered Garrison 1671 | -7/Garrison | Triggered checkpoint 1722 | -7/Garrison | Triggered checkpoint 1731 | -7/Garrison | Lost 5 parts (1p2n1u1w) 1751 | -7/Garrison | Core integrity fell below 50% 1760 | -7/Garrison | Discovered new exit (range 10) 1764 | -7/Garrison | Attempted to access garrison exit controls, blocked by remote lockdown 1780 | -7/Garrison | Triggered checkpoint 1791 | -7/Garrison | Core integrity fell below 20% 1797 | -7/Garrison | Destroyed by G-47 Trooper with Particle Gun Last Messages --------------- Field strength at 50. Field strength at 37. Field strength at 23. Field strength at 14. Imp. Flight Unit destroyed. Field strength at 4. Stasis field depleted. Com. Battery destroyed. System corrupted: Energy discharge (-22). EXIT=FOUND Attempting to access garrison exit controls... Remote lockdown engaged. Adv. Weight Redist. System destroyed. Imp. Flight Unit destroyed. Beams of light sweep through the air. An alarm sounds. Critical hit (Burn: +37). System corrupted: Matter fused (-7). Connecting with Door Terminal... ALERT: Suspicious activity at Terminal G001. Transmitting hostile system tracking data. Map ----- +----------------------------------------------------+ | ????????????????????????????????# #????????????? | | ???????????????????????????####### ########??????? | | ???????????????????????????# #??????? | | ???????????????????????????# < #??????? | | ???????????????????????????# #??????? | | ???????????????????????????# ############??????? | | ???????????????????????????# #?????????????????? | | ???????????????????????????# #?????????????????? | | ???????????????????????????# ######????????????? | | ???????????????????????????# #????????????? | | ???????????????????????????# #????????????? | | ???????????????????????????# ### #????????????? | | ???????????????????????????# #?# #????????????? | | ???????????????????????????# #?# ###??????????? | | ???????????????????????????# ### #??????????? | | ???????????????????????????# + + #??????????? | | ???????????????????????????# ### #??????????? | | ???????????????????????????# #?# ###??????????? | | ???????????????????????????# #?# #????????????? | | ???????????????????????????# #?# #????????????? | | ???????????????????????????# #?# ###??????????? | | ???????????????????????????# #?# #"#??????????? | | ???????????????????????????# #?# "#??????????? | | ??????###################### #?# "#??????????? | | ??????# l ### "#??????????? | | ??????# ^ Y @ g # #"#??????????? | | ?????## g Y g / # ###??????????? | | ?????#T ################## ########????????????? | | ?????## #????????????????# ###?????????????????? | | ??????# #????????????????# #?????????????????? | | ??????# #????????????????" #?????????????????? | | ??????# #????????????????#T #?????????????????? | | ####### #????????????????#####?????????????????? | | # ## #??????????????????????????????????????? | | # ## #??????????????????????????????????????? | | #??????????????????????????????????????? | | #??????????????????????????????????????? | | #??????????????????????????????????????? | | # ## #??????????????????????????????????????? | | # ## #??????????????????????????????????????? | | ??????????????????????????????????????? | | ??????????????????????????????????????? | | ??????????????????????????????????????? | | ?????????????????????????????????????? | | # ## ##?????????????????????????????????????? | | # #? #??????????????????????????????????????? | | ? ??????????????????????????????????????? | | ? ?????????????????????????????????????? | | ##?????????????????????????????????????? | | #""""## ##??????????????????????????????????????? | +----------------------------------------------------+ Best States ------------- Heat Dissipation 35 Energy Generation 15 Energy Capacity 350 Matter Stores 300 Matter Capacity 350 Sight Range 18 Terrain Scan Density 10 Additional Mass Support 9 Armor Coverage 225 Propulsion Shielding 33 Evasion (%) 63 Item Schematics ----------------- None Robot Schematics ------------------ None Fabricated ------------ Nothing Alien Tech Used ----------------- None Achievements -------------- Close Call Part-time Mechanic Challenges ------------ None Game ------ Seed BattleSurgeStorage Manual? 0 Play Time 00:48:56 Cumulative 3.6 hours Start 2025.03.01 @ 09:37:36 End 2025.03.01 @ 10:30:26 Sessions 1 Manual Loads 0 Difficulty Rogue Special Mode None Game No. 3 Rogue 3 Adventurer 0 Explorer 0 Win Type - Total 0 Types 0/0/0/0/0/0/0/0/0 Lore% 0 Gallery% 6 Achievement% 7 Wizard Run 0 Options --------- Layout 0 ASCII 0 Keyboard 0 Movement Mouse Keybinds 0 Fullscreen 1 Font 24/Smallcaps Map View 76x50 Zoom Use 0% Tactical HUD 0 Map Filters NONE Filters NONE Steam 1 RUN: ae186021-49d8-4ac9-9374-e60bfb14f549